bitfinex-derivatives/quotes_ETHF0:USTF0_20251021
["timestamp","ask_amount","ask_price","bid_price","bid_amount"]
[1761012000827,3.5841,3949.7,3949.6,2.80751387]
[1761012001033,4.2847,3949.5,3949.4,1.74211387]
[1761012001229,4.2847,3949.5,3949.2,0.68271387]
[1761012001230,2.4673,3949.3,3949.2,0.68271387]
[1761012001430,1.478,3949.7,3949.1,2.80751387]
[1761012001634,4.03973,3949.7,3949.6,2.1248]
[1761012002432,4.03973,3949.7,3949.6,3.617]
[1761012002628,0.45563,3949.7,3949.6,3.617]
[1761012003234,4.03973,3949.7,3949.6,3.617]
[1761012003426,4.03973,3949.7,3949.6,2.1248]
[1761012003622,1.44493,3949.7,3949.6,3.617]
[1761012003828,4.03973,3949.7,3949.6,3.617]
[1761012004140,0.45569,3949.2,3949.1,1.74098436]
[1761012004330,0.45575,3948.7,3948.6,0.68158436]
[1761012004533,2.56185,3948.7,3948.6,3.617]
[1761012004834,2.56176,3949.4,3949.3,3.617]
[1761012005131,2.56181,3949.0,3948.9,3.617]
[1761012005440,4.03981,3949.0,3948.9,3.617]
[1761012006239,1.44501,3949.0,3948.9,3.617]
[1761012006429,0.9893,3949.3,3949.2,3.617]
[1761012006629,2.92291,3949.9,3949.8,2.1248]
[1761012007234,4.03971,3949.9,3949.8,3.617]
[1761012007430,1.93365,3949.5,3949.4,3.617]
[1761012007636,4.03975,3949.5,3949.4,3.617]
[1761012007836,0.45565,3949.5,3949.4,3.617]
[1761012008027,2.4673,3949.8,3949.5,2.1946]
[1761012008232,4.03972,3949.8,3949.7,3.617]
[1761012008429,4.74035,3949.5,3949.4,1.0594]
[1761012008846,6.09394243,3949.5,3949.4,1.0594]
[1761012009343,4.03979,3949.2,3949.1,2.1248]
[1761012009640,4.03979,3949.2,3949.1,3.617]
[1761012009840,4.03979,3949.2,3949.1,2.1248]
[1761012010345,4.03979,3949.2,3949.1,3.617]
[1761012010541,0.45569,3949.2,3949.1,3.617]
[1761012010955,2.92299,3949.2,3949.1,3.617]
[1761012011338,0.45568,3949.3,3949.2,1.4922]
[1761012011538,0.45567,3949.4,3949.3,3.617]
[1761012012736,0.45563,3949.7,3949.6,1.94784]
[1761012012943,0.45563,3949.7,3949.6,3.617]
[1761012013442,2.92293,3949.7,3949.6,3.617]
[1761012014751,4.03973,3949.7,3949.6,2.1248]
[1761012015747,4.03973,3949.7,3949.6,3.617]
[1761012016455,1.61092,3949.8,3949.7,3.8339]
[1761012016644,3.23872,3949.8,3949.7,3.8339]
[1761012016841,4.31142,3949.8,3949.7,3.8339]
[1761012017148,0.7006,3950.5,3949.8,3.8339]
[1761012017149,1.61091,3949.9,3949.8,3.8339]
[1761012017348,3.23871,3949.9,3949.8,3.8339]
[1761012017944,0.45561,3949.9,3949.8,3.8339]
[1761012019453,1.61089,3950.1,3950.0,3.8339]
[1761012019655,1.61089,3950.1,3950.0,4.523]
[1761012020647,1.1553,3950.3,3950.2,3.8339]
[1761012020853,0.45556,3950.3,3950.2,3.8339]
[1761012021040,1.61086,3950.3,3950.2,3.8339]
[1761012021241,3.23866,3950.3,3950.2,3.8339]
[1761012023254,1.15849102,3950.6,3950.4,0.45554]
[1761012023453,1.15849102,3950.6,3950.5,3.8339]
[1761012023757,2.78629102,3950.6,3950.5,3.8339]
[1761012023955,3.85899102,3950.6,3950.5,3.8339]
[1761012024153,1.63099102,3950.6,3950.5,3.8339]
[1761012024357,3.23856,3951.2,3951.1,3.8339]
[1761012024763,1.61076,3951.2,3951.1,3.8339]
[1761012024958,0.45546,3951.2,3951.1,3.8339]
[1761012025457,0.00323745,3951.2,3951.1,3.8339]
[1761012026048,0.00323745,3951.2,3951.1,13.5739]
[1761012028160,3.8835,3952.0,3951.9,3.8036]
[1761012028359,4.98146,3952.0,3951.9,3.8036]
[1761012028557,0.45536,3952.0,3951.9,3.8036]
[1761012028760,1.068,3952.0,3951.9,3.8036]
[1761012028949,0.45536,3952.1,3952.0,4.4623]
[1761012029261,1.07033385,3952.1,3952.0,4.46449634]
[1761012029452,0.00233385,3952.1,3952.0,4.46449634]
[1761012029958,0.00233385,3952.1,3952.0,14.19849634]
[1761012032155,1.07033385,3952.1,3952.0,14.19849634]
[1761012032652,0.00233385,3952.1,3952.0,14.19849634]
[1761012034259,2.76013385,3952.1,3952.0,3.80579634]
[1761012034461,3.88583385,3952.1,3952.0,13.53179634]
[1761012034761,2.76013385,3952.1,3952.0,13.53179634]
[1761012034962,0.00233385,3952.1,3952.0,14.19049634]
[1761012036465,3.88583385,3952.1,3952.0,13.52779634]
[1761012036666,0.00233385,3952.1,3952.0,14.18649634]
[1761012038560,0.00233385,3952.1,3952.0,14.64185634]
[1761012042166,1.52568385,3952.1,3952.0,4.46449634]
[1761012042470,4.34118385,3952.1,3952.0,11.93249634]
[1761012042671,4.34118385,3952.1,3952.0,13.51879634]
[1761012042872,4.34118385,3952.1,3952.0,0.00219634]
[1761012043070,9.34118385,3952.1,3952.0,0.00219634]
[1761012043770,9.34118385,3952.1,3951.3,1.5863]
[1761012043971,2.1937,3950.6,3950.5,1.0609]
[1761012044170,3.8835,3950.3,3950.2,3.8036]
[1761012044373,4.33911,3949.9,3949.8,3.8036]
[1761012044876,4.33911,3949.9,3949.8,10.77193996]
[1761012045075,4.33911,3949.9,3949.8,0.00203996]
[1761012045474,4.33911,3949.9,3949.8,1.06293996]
[1761012045875,4.33911,3949.9,3949.8,3.80563996]
[1761012046071,1.52361,3949.9,3949.8,3.80563996]
[1761012046373,4.33911,3949.9,3949.8,0.00203996]
[1761012046770,9.33911,3949.9,3949.8,0.00203996]
[1761012047874,9.33911,3949.9,3949.8,1.06293996]
[1761012047875,4.33911,3949.9,3949.8,1.06293996]
[1761012048375,4.33911,3949.9,3949.8,3.80563996]
[1761012049680,3.21341,3949.9,3949.8,3.80563996]
[1761012050081,1.52357,3950.2,3950.1,2.7427]
[1761012050279,1.52357,3950.2,3950.1,3.8036]
[1761012050681,4.33907,3950.2,3950.1,1.0609]
[1761012050981,3.8835,3949.9,3949.8,3.80563996]
[1761012051182,3.8835,3949.9,3949.8,0.00203996]
[1761012052283,8.8835,3949.9,3949.8,0.00203996]
[1761012052482,2.7578,3949.2,3949.1,3.8036]
[1761012053077,1.068,3949.2,3949.1,3.8036]
[1761012053276,1.6898,3949.5,3949.4,3.8036]
[1761012053277,2.7578,3949.5,3949.4,3.8036]
[1761012053572,2.7578,3949.5,3949.4,2.21925302]
[1761012053573,3.88669867,3949.5,3949.4,2.21925302]
[1761012053773,4.52929867,3949.5,3949.4,1.06285302]
[1761012055479,3.88669867,3949.5,3949.4,3.80555302]
[1761012056880,1.07119867,3949.5,3949.4,3.80555302]
[1761012057075,2.76099867,3949.5,3949.4,3.80555302]
[1761012057276,3.88669867,3949.5,3949.4,3.80555302]
[1761012058885,3.88669867,3949.5,3949.4,2.21925302]
[1761012058886,4.50649867,3949.5,3949.4,2.21925302]
[1761012059980,3.88669867,3949.5,3949.4,3.71735302]
[1761012060175,1.07119867,3949.5,3949.4,3.71735302]
[1761012060376,3.58459867,3949.5,3949.4,3.71735302]
[1761012060772,0.00319867,3949.5,3949.4,3.71735302]
[1761012060972,0.45557,3950.3,3949.5,1.13914]
[1761012061178,0.45555,3950.4,3950.3,4.03386]
[1761012061487,3.94315,3950.4,3950.3,3.5783]
[1761012061779,1.13878,3950.8,3950.0,0.6587]
[1761012061780,3.4876,3950.1,3950.0,10.6999]
[1761012062081,3.48975769,3950.1,3950.0,10.6999]
[1761012062484,3.48975769,3950.1,3950.0,1.0109]
[1761012062984,1e-08,3950.1,3950.0,9.237]
[1761012063180,1e-08,3950.1,3950.0,4.237]
[1761012066482,3.48760001,3950.1,3950.0,2.0802]
[1761012066692,3.48760001,3950.1,3950.0,1.0109]
[1761012067384,3.94322,3949.8,3949.7,3.5783]
[1761012067778,1.42982,3949.8,3949.7,3.5783]
[1761012068088,0.45562,3949.8,3949.7,3.5783]
[1761012073282,0.45562,3949.8,3949.7,4.48465586]
[1761012073586,5.07153743,3949.8,3949.7,3.5783]
[1761012074584,3.94325,3949.5,3949.4,4.48660888]
[1761012074780,5.69136743,3949.5,3949.4,3.58025302]
[1761012074982,4.56305,3949.5,3949.4,3.58025302]
[1761012075883,4.56305,3949.5,3949.4,0.00195302]
[1761012077191,0.45578,3948.4,3948.3,8.53535586]
[1761012077386,3.71878,3948.4,3948.3,10.906]
[1761012077786,3.71878,3948.4,3948.3,9.478]
[1761012078288,3.71878,3948.4,3948.3,10.90803821]
[1761012078691,0.45578,3948.4,3948.3,10.90803821]
[1761012078893,3.88737743,3948.6,3948.5,3.277]
[1761012081098,4.84707743,3948.6,3948.5,3.277]
[1761012081498,0.45576,3948.6,3948.5,3.8134]
[1761012081993,3.71876,3948.6,3948.5,3.277]
[1761012082198,3.71876,3948.6,3948.5,1.849]
[1761012082601,3.71876,3948.6,3948.5,3.277]
[1761012086215,3.71878,3948.4,3948.3,0.97083821]
[1761012086508,4.84709743,3948.4,3948.3,0.97083821]
[1761012086714,9.84709743,3948.4,3948.3,0.00203821]
[1761012086903,9.84709743,3948.4,3947.0,0.4754]
[1761012086904,1.3932,3947.1,3947.0,0.90635586]
[1761012087101,3.263,3946.9,3946.8,1.87515586]
[1761012087302,2.3033,3946.5,3946.4,3.277]
[1761012087497,3.263,3946.5,3946.4,12.927]
[1761012087720,3.8145,3946.5,3946.4,1.849]
[1761012087907,3.81673621,3946.5,3946.4,0.00223186]
[1761012088113,8.81673621,3946.5,3946.4,0.00223186]
[1761012088305,3.61598,3945.8,3945.7,5.744]
[1761012088506,4.74429743,3945.8,3945.7,5.744]
[1761012088700,1.2829,3945.4,3945.3,3.1673]
[1761012088898,1.739,3945.7,3945.3,11.4298]
[1761012089103,3.61601,3945.6,3945.5,1.7808]
[1761012089304,3.61601,3945.6,3945.5,1.78282393]
[1761012089501,3.61601,3945.6,3945.5,3.16932393]
[1761012089909,3.61601,3945.6,3945.5,0.00202393]
[1761012090310,3.1599,3945.6,3945.5,3.16932393]
[1761012091911,1.73897,3945.9,3945.5,3.16932393]
[1761012092107,2.1969,3945.8,3945.7,3.1673]
[1761012092705,3.95802361,3946.3,3945.5,0.45813393]
[1761012092706,2.1969,3946.1,3946.0,1.7808]
[1761012092917,2.1969,3946.1,3946.0,3.1673]
[1761012093414,3.1599,3946.1,3946.0,3.1673]
[1761012094204,3.1599,3946.1,3946.0,1.7808]
[1761012094416,3.1599,3946.1,3946.0,0.8776]
[1761012094720,3.61598,3945.8,3945.7,2.2641]
[1761012094921,3.61598,3945.8,3945.7,0.8776]
[1761012095714,3.616,3945.6,3945.5,0.00202393]
[1761012096813,3.616,3945.6,3945.5,0.87962393]
[1761012097009,3.616,3945.6,3945.5,2.26612393]
[1761012097214,3.616,3945.6,3945.5,3.16932393]
[1761012097720,3.1599,3945.6,3945.5,3.16932393]
[1761012097916,3.1599,3945.6,3945.5,0.00202393]
[1761012098621,3.1599,3945.6,3945.5,0.87962393]
[1761012099121,3.1599,3945.6,3945.5,0.00202393]
[1761012099320,3.1599,3945.6,3945.5,3.16932393]
[1761012100529,3.1599,3945.6,3945.5,1.78282393]
[1761012102424,3.1599,3945.6,3945.5,0.87962393]
[1761012103716,1.2829,3945.6,3945.5,1.78282393]
[1761012103921,1.877,3945.8,3945.7,0.8776]
[1761012104116,3.616,3945.6,3945.5,0.87962393]
[1761012105128,1.73898,3945.8,3945.7,1.7808]
[1761012105331,2.65298,3945.8,3945.7,3.1673]
[1761012105628,3.61598,3945.8,3945.7,3.1673]
[1761012108430,3.616,3945.6,3945.5,0.00202393]
[1761012109223,3.616,3945.6,3945.5,0.87962393]
[1761012110527,3.616,3945.6,3945.5,1.78282393]
[1761012110728,2.86975511,3945.9,3945.8,0.8776]
[1761012111035,3.78375511,3945.9,3945.8,3.1673]
[1761012111531,3.46381511,3946.2,3946.1,3.1673]
[1761012112125,4.74671511,3946.2,3946.1,3.1673]
[1761012112731,3.1599,3946.2,3946.1,3.1673]
[1761012112930,0.914,3946.2,3946.1,3.1673]
[1761012113127,4.29068511,3946.2,3946.1,1.7808]
[1761012113527,4.29068511,3946.2,3946.1,0.8776]
[1761012114423,2.1969,3945.9,3945.8,3.1673]
[1761012114728,1.13078511,3946.2,3946.1,3.1673]
[1761012114729,2.65294,3946.2,3946.1,3.1673]
[1761012114933,2.1969,3946.2,3946.1,3.1673]
[1761012115229,1.2829,3946.4,3946.2,1.3865]
[1761012115437,0.914,3946.4,3946.3,3.1673]
[1761012116233,2.1969,3946.4,3946.3,3.1673]
[1761012116639,2.65291,3946.4,3946.3,3.1673]
[1761012116830,3.61591,3946.4,3946.3,3.1673]
[1761012117134,0.914,3946.0,3945.9,3.1673]
[1761012117350,2.65293,3946.3,3946.2,3.1673]
[1761012117527,0.914,3946.3,3946.2,3.1673]
[1761012117729,2.00043621,3946.5,3946.4,1.6723]
[1761012118038,2.00043621,3946.5,3946.4,2.8774]
[1761012118236,3.45113621,3946.5,3946.4,0.8101]
[1761012119136,2.90663621,3946.5,3946.4,2.8774]
[1761012120342,0.00223621,3946.5,3946.4,2.8774]
[1761012121139,3.45113621,3946.5,3946.4,1.6723]
[1761012121340,2.9044,3945.8,3945.7,1.71645586]
[1761012121537,2.9044,3945.6,3945.5,0.81212393]
[1761012121741,2.9044,3945.6,3945.5,0.00202393]
[1761012122833,7.9044,3945.6,3945.5,0.00202393]
[1761012123136,3.36062,3944.6,3944.5,1.71645586]
[1761012123334,2.9044,3944.3,3944.2,0.90635586]
[1761012123534,0.7687,3944.0,3943.9,3.78375586]
[1761012123739,1.2295,3944.3,3943.9,3.78375586]
[1761012123740,1.9982,3944.3,3944.2,2.8774]
[1761012124133,1.9982,3944.3,3944.2,2.88014615]
[1761012125236,2.9044,3944.3,3944.2,1.67504615]
[1761012125739,2.9044,3944.3,3944.2,0.81284615]
[1761012127250,2.9044,3944.6,3944.2,0.45901615]
[1761012127434,1.2295,3944.4,3944.3,3.33365]
[1761012127734,2.45441,3944.7,3944.6,1.6723]
[1761012127935,3.36061,3944.7,3944.6,1.6723]
[1761012128136,0.5445,3945.0,3944.2,0.00274615]
[1761012128137,3.36064,3944.4,3944.2,0.00274615]
[1761012128440,3.36064,3944.4,3944.2,0.81284615]
[1761012128441,2.9044,3944.3,3944.2,0.81284615]
[1761012129635,2.9044,3944.3,3944.2,0.00274615]
[1761012132142,2.9044,3944.3,3943.3,0.8101]
[1761012132143,3.36076,3943.4,3943.3,0.8101]
[1761012132638,3.36076,3943.4,3943.3,2.8774]
[1761012132941,1.9982,3943.4,3943.3,2.8774]
[1761012133139,2.00141952,3943.4,3943.3,2.88014856]
[1761012134944,2.00141952,3943.4,3943.3,0.00274856]
[1761012134945,2.90761952,3943.4,3943.3,0.00274856]
[1761012135147,2.90761952,3943.4,3942.8,0.02536269]
[1761012135148,3.36081,3942.9,3942.8,0.02536269]
[1761012135352,2.9044,3942.9,3942.8,0.83546269]
[1761012135650,2.9044,3942.9,3942.8,2.90276269]
[1761012135947,1.1947,3943.2,3942.8,2.90276269]
[1761012136241,0.7793,3943.2,3943.1,2.7521]
[1761012136647,1.974,3943.2,3943.1,2.7521]
[1761012137439,1.974,3943.2,3943.1,0.7719]
[1761012137440,2.7535,3943.2,3943.1,0.7719]
[1761012137947,2.7535,3943.1,3943.0,0.4564]
[1761012138448,2.7535,3943.1,3943.0,3.2085]
[1761012139761,1.974,3943.1,3943.0,3.2085]
[1761012140047,1.97721952,3943.4,3943.3,0.45637]
[1761012140251,0.45637,3943.3,3942.8,0.79925212]
[1761012140451,1.5588,3943.2,3943.1,0.7719]
[1761012140656,1.5588,3943.2,3943.1,2.7521]
[1761012140958,2.7535,3943.2,3943.1,2.7521]
[1761012141350,2.7535,3943.2,3943.1,1.5673]
[1761012141654,2.7535,3943.2,3943.1,2.7521]
[1761012141855,2.7535,3943.2,3943.1,1.5673]
[1761012142248,3.2288,3943.0,3942.9,0.7719]
[1761012143064,3.20991,3942.9,3942.8,0.02735212]
[1761012143351,3.20991,3942.9,3942.8,0.79925212]
[1761012143751,2.7535,3942.9,3942.8,0.79925212]
[1761012143948,1.5588,3943.2,3942.8,0.79925212]
[1761012144152,3.20991,3942.9,3942.8,0.02735212]
[1761012144447,3.20991,3942.9,3942.1,0.4565]
[1761012144448,0.45652,3942.0,3941.9,1.1848]
[1761012144641,3.2288,3942.0,3941.9,1.5673]
[1761012144846,2.7535,3942.0,3941.9,2.7521]
[1761012145545,2.7535,3941.6,3941.5,0.7719]
[1761012145758,2.7535,3941.3,3941.2,1.9567]
[1761012146055,0.7793,3941.3,3941.2,2.75402891]
[1761012146265,1.1947,3941.9,3941.8,1.5673]
[1761012146445,0.7793,3942.5,3942.2,2.7521]
[1761012146644,41.2753,3943.5,3942.2,2.7521]
[1761012146645,0.7793,3943.2,3943.1,2.7521]
[1761012146857,1.5588,3943.2,3943.1,2.7521]
[1761012147046,0.7793,3942.7,3942.6,1.9567]
[1761012147356,1.974,3941.9,3941.8,3.20864]
[1761012147554,0.7793,3941.9,3941.8,3.20864]
[1761012147756,1.8462,3941.9,3941.8,2.7521]
[1761012147947,1.7871,3941.6,3941.5,2.98548]
[1761012148151,1.7871,3941.6,3941.5,12.55448]
[1761012148358,0.7202,3941.9,3941.7,2.26304]
[1761012148552,1.7871,3942.4,3942.0,1.0702]
[1761012148758,2.5092,3942.4,3942.3,2.5289]
[1761012149144,1.789,3941.8,3941.7,2.5289]
[1761012149349,2.5092,3941.8,3941.7,2.5289]
[1761012149849,1.7871,3941.8,3941.7,2.5289]
[1761012150559,1.7871,3942.0,3941.9,2.5289]
[1761012150754,0.45648,3942.4,3941.6,9.567]
[1761012150755,1.7871,3942.3,3942.2,1.4587]
[1761012151061,1.7871,3942.3,3942.2,2.5289]
[1761012151649,2.5092,3942.3,3942.2,1.4587]
[1761012152363,2.5092,3941.4,3941.3,1.64414067]
[1761012152545,2.5092,3941.3,3941.1,9.564]
[1761012152746,2.5092,3941.3,3940.5,1.06319906]
[1761012152950,2.5092,3941.3,3940.5,0.15535839]
[1761012153150,2.5092,3941.3,3940.3,0.90784067]
[1761012153350,2.5092,3941.3,3940.4,1.0702]
[1761012153757,2.5092,3941.3,3941.2,0.73822891]
[1761012153958,2.5092,3941.3,3941.2,2.53082891]
[1761012154657,1.0669,3941.6,3941.3,1.0702]
[1761012154859,1.4423,3941.6,3941.5,0.7363]
[1761012155264,1.4423,3941.6,3941.5,2.5289]
[1761012155468,1.7871,3941.8,3941.7,2.98545]
[1761012155761,1.7871,3942.0,3941.9,1.8065]
[1761012155961,2.5092,3942.0,3941.9,2.5289]
[1761012156165,0.7202,3942.0,3941.9,2.5289]
[1761012156358,0.93177,3942.5,3941.5,0.4527]
[1761012156359,1.4423,3942.4,3942.3,2.5289]
[1761012156560,0.7202,3942.4,3942.3,2.5289]
[1761012156756,1.7871,3942.4,3942.3,2.5289]
[1761012156956,1.0669,3942.8,3941.8,1.0702]
[1761012157171,1.0669,3942.7,3942.4,0.7363]
[1761012157468,2.9562,3942.5,3942.4,0.7363]
[1761012157865,1.0669,3942.4,3942.3,1.52668]
[1761012158066,1.0669,3942.4,3942.3,1.0702]
[1761012159159,1.0669,3942.4,3941.6,0.90784067]
[1761012159366,1.0669,3941.9,3941.5,10.6252]
[1761012159565,1.0669,3941.9,3941.5,11.08177]
[1761012159868,1.0669,3941.9,3941.6,1.0702]
[1761012160068,1.0669,3941.9,3941.6,1.52676]
[1761012160362,2.5092,3941.9,3941.8,0.7363]
[1761012160567,2.96573,3941.9,3941.8,0.7363]
[1761012160767,2.5092,3941.9,3941.8,2.5289]
[1761012161161,1.7871,3941.9,3941.8,2.5289]
[1761012161367,1.4423,3941.9,3941.8,0.7363]
[1761012161561,2.5092,3941.9,3941.8,0.7363]
[1761012161967,2.5092,3941.9,3941.8,1.8065]
[1761012162468,0.7202,3941.9,3941.8,2.5289]
[1761012162670,1.7871,3942.2,3942.1,2.98541]
[1761012163165,0.447,3942.5,3942.1,2.98541]
[1761012163166,1.5139,3942.5,3942.1,2.5289]
[1761012163373,1.7871,3942.5,3942.4,2.5289]
[1761012163562,0.7202,3942.5,3942.4,2.5289]
[1761012163764,1.89873,3942.8,3942.7,0.7363]
[1761012164262,2.96563,3942.8,3942.7,0.7363]
[1761012164463,0.4753,3943.0,3942.4,1.0702]
[1761012164464,0.7202,3942.5,3942.4,1.8065]
[1761012164970,2.5092,3942.9,3942.8,1.19272]
[1761012165268,2.9562,3942.5,3942.4,0.7363]
[1761012165971,1.7871,3942.8,3942.7,2.5289]
[1761012166166,2.5092,3942.8,3942.7,0.45644]
[1761012167768,2.5092,3942.8,3942.7,2.98534]
[1761012168571,0.4753,3943.0,3942.0,0.45652]
[1761012168572,1.0669,3942.1,3942.0,0.45652]
[1761012168777,2.5092,3941.6,3941.5,2.10072067]
[1761012168966,2.5092,3941.6,3941.5,1.19288]
[1761012169161,2.5092,3941.6,3941.5,2.98548]
[1761012169372,2.5092,3941.6,3941.5,1.91528]
[1761012170067,2.5092,3941.6,3941.5,2.98548]
[1761012170266,2.5092,3941.6,3941.5,12.52648]
[1761012171564,2.5092,3941.6,3941.5,11.45628]
[1761012172870,0.7202,3941.6,3941.5,12.52648]
[1761012173075,0.7202,3941.6,3941.5,13.43432067]
[1761012173379,2.5092,3941.6,3941.5,11.45628]
[1761012173885,1.7871,3941.6,3941.5,12.52648]
[1761012174583,1.7871,3941.9,3941.8,2.98544]
[1761012174880,0.7202,3941.9,3941.8,2.98544]
[1761012175375,2.5092,3941.9,3941.8,1.19284]
[1761012175675,2.5092,3941.9,3941.8,2.98544]
[1761012177281,2.5092,3941.9,3941.8,1.91524]
[1761012177578,2.5092,3941.9,3941.8,0.45654]
[1761012177978,2.5092,3941.9,3941.6,0.91032706]
[1761012177979,2.4147,3941.7,3941.5,0.91032706]
[1761012178171,2.4147,3941.6,3941.5,1.08527]
[1761012178372,2.4147,3941.6,3941.5,10.61527]
[1761012178567,2.4147,3941.6,3941.4,0.91032706]
[1761012178771,2.4147,3941.3,3941.2,8.30652891]
[1761012178980,2.4147,3941.3,3941.2,8.93522891]
[1761012179177,0.4304,3941.5,3941.2,10.67892891]
[1761012179472,4.41379117,3942.0,3941.2,10.67892891]
[1761012179473,1.6982,3942.0,3941.9,2.3724]
[1761012179866,2.4147,3941.6,3941.5,1.79898]
[1761012180071,1.6982,3941.6,3941.5,2.82898]
[1761012181082,2.4147,3941.6,3941.5,2.82898]
[1761012181275,2.4147,3941.6,3941.5,1.79898]
[1761012181481,2.4147,3941.6,3941.5,1.08528]
[1761012181983,2.4147,3941.3,3941.2,0.91233009]
[1761012182168,2.4147,3941.3,3941.2,9.52892891]
[1761012182374,2.4147,3941.3,3941.2,10.15762891]
[1761012183082,2.4147,3941.3,3941.2,11.90132891]
[1761012183277,1.6982,3941.3,3941.2,11.90132891]
[1761012184081,2.4147,3941.3,3941.2,11.90132891]
[1761012184386,2.4147,3941.3,3941.2,0.63062891]
[1761012184684,2.4147,3941.3,3941.2,10.15262891]
[1761012184980,0.6849,3941.7,3941.6,2.20026]
[1761012185280,0.4304,3942.0,3941.7,0.45654]
[1761012185477,0.4304,3942.0,3941.8,1.3424]
[1761012185478,2.4147,3941.9,3941.8,1.3424]
[1761012185981,2.4147,3941.9,3941.8,0.6287]
[1761012186773,2.4147,3941.9,3941.8,2.3724]
[1761012187294,2.4147,3942.2,3942.1,1.7989]
[1761012187579,2.4147,3942.2,3942.1,1.3424]
[1761012187789,2.8451,3942.0,3941.9,0.6287]
[1761012188682,2.8451,3942.0,3941.9,2.3724]
[1761012188882,2.4147,3942.0,3941.9,2.3724]
[1761012189193,1.4014,3941.9,3941.8,11.8904]
[1761012189381,0.6849,3941.9,3941.8,11.8904]
[1761012189580,0.447,3942.5,3941.9,1.03]
[1761012189781,1.6982,3942.0,3941.9,2.82893]
[1761012190488,1.6982,3942.0,3941.9,0.6287]
[1761012190489,1.1153,3942.0,3941.9,0.6287]
[1761012190786,2.8451,3942.0,3941.9,10.1427]
[1761012191281,2.4147,3941.7,3941.6,1.53910118]
[1761012191482,2.4147,3941.7,3941.6,10.1417]
[1761012191790,1.0133,3941.4,3941.3,1.53910118]
[1761012191984,2.4147,3941.4,3941.3,10.1407]
[1761012192983,1.4699,3941.3,3941.2,0.00192891]
[1761012193186,2.8713,3941.3,3941.2,9.51292891]
[1761012193581,2.8713,3941.3,3941.2,10.85532891]
[1761012193582,2.4147,3941.3,3941.2,10.85532891]
[1761012193783,2.4147,3941.3,3941.2,11.88532891]
[1761012193985,2.4147,3941.3,3941.2,2.37432891]
[1761012194184,2.4147,3941.3,3941.2,2.83093891]
[1761012195491,2.4147,3941.3,3941.2,1.80093891]
[1761012195686,2.4147,3941.3,3941.2,1.08723891]
[1761012196290,2.4147,3941.3,3941.2,2.63993891]
[1761012196482,0.6849,3941.3,3941.2,2.63993891]
[1761012196682,0.6849,3941.3,3941.2,3.55034009]
[1761012196890,1.6147,3941.3,3941.2,3.55034009]
[1761012197086,2.2148,3941.3,3941.2,9.50792891]
[1761012197488,2.6714,3941.3,3941.2,9.50792891]
[1761012197686,2.2148,3941.3,3941.2,9.50792891]
[1761012197991,2.2148,3941.3,3941.2,10.10632891]
[1761012198188,2.2148,3941.3,3941.2,11.65902891]
[1761012198489,0.6849,3941.3,3941.2,12.56943009]
[1761012198691,1.9505,3941.5,3941.4,2.1511]
[1761012198892,2.5506,3941.5,3941.4,2.1511]
[1761012199484,2.5506,3941.5,3941.4,1.2414]
[1761012199985,2.5506,3941.5,3941.4,2.1511]
[1761012200183,2.1202,3941.5,3941.4,2.1511]
[1761012202590,1.1904,3941.6,3941.5,2.1511]
[1761012202797,1.1904,3941.6,3941.5,10.7404]
[1761012203294,2.1202,3941.6,3941.5,10.7404]
[1761012203695,2.1202,3941.3,3941.2,0.00192891]
[1761012205397,2.1202,3941.3,3941.2,1.24332891]
[1761012205584,2.1202,3941.3,3941.2,2.15302891]
[1761012206691,2.1202,3941.3,3941.2,1.24332891]
[1761012206895,2.1202,3941.3,3941.2,0.00192891]
[1761012208593,7.1202,3941.3,3941.2,0.00192891]
[1761012209994,2.1202,3941.3,3941.2,0.00192891]
[1761012211196,2.1202,3941.3,3941.2,2.12982891]
[1761012211603,2.36368,3941.5,3941.4,2.1279]
[1761012211807,2.5336,3941.5,3941.4,2.1279]
[1761012211995,2.1612,3941.5,3941.4,2.1279]
[1761012212191,1.5347,3941.8,3941.7,2.58445]
[1761012212589,2.1612,3941.8,3941.7,2.58445]
[1761012212995,2.1612,3941.8,3941.7,1.72545]
[1761012213602,2.1612,3941.8,3941.7,0.45655]
[1761012213805,0.9157,3941.9,3941.3,0.859]
[1761012214107,1.70205,3941.7,3941.6,1.2689]
[1761012214293,1.70205,3941.7,3941.6,0.6231]
[1761012214491,2.1612,3941.3,3941.2,0.62502891]
[1761012214698,2.1612,3941.3,3941.2,2.12982891]
[1761012214894,2.1612,3941.3,3941.2,11.61382891]
[1761012215606,1.5347,3941.3,3941.2,2.12982891]
[1761012215800,1.9141,3941.5,3941.4,2.1279]
[1761012216109,1.5347,3941.5,3941.4,2.1279]
[1761012217013,1.99125,3941.8,3941.6,0.859]
[1761012217311,2.61775,3941.8,3941.7,1.2689]
[1761012219300,2.1612,3941.4,3941.3,2.17930118]
[1761012219500,2.6178,3941.3,3941.2,0.00192891]
[1761012221111,2.6178,3941.3,3941.2,0.62502891]
[1761012222006,2.6178,3941.3,3941.2,0.00192891]
[1761012222514,7.6178,3941.3,3941.2,0.00192891]
[1761012222702,2.99729,3940.5,3940.4,1.53350118]
[1761012222901,2.99729,3940.5,3940.4,1.53455118]
[1761012223110,2.5406,3940.5,3940.4,1.53455118]
[1761012223312,1.5347,3940.5,3940.4,2.1279]
[1761012223514,2.1612,3940.5,3940.4,2.1279]
[1761012223719,2.16319397,3940.5,3940.4,3.04233805]
[1761012224619,2.54259397,3940.5,3940.4,2.18333805]
[1761012225015,2.16319397,3940.5,3940.4,3.04233805]
[1761012225201,0.00199397,3940.5,3940.4,3.04233805]
[1761012226911,0.00199397,3940.5,3940.4,2.13101568]
[1761012227311,2.16319397,3940.5,3940.4,3.04205634]
[1761012227716,2.54259397,3940.5,3940.4,0.00311568]